Workbook

Sheet Sheet1
A4: INSTRUCTIONS: Use this form when a single information collection document involves multiple reporting and recordkeeping requirements. The totals of the figures in cols. should be entered in item 13 of OMB-83-1: cols. (D) &/or (I) = 13a (respondent is only counted once); cols. F & I = 13b; cols. H & K = 13c. (F)Total/(D)Total = (E)Average (H)Total/(F)Total = (G)Average (K)Total/(I)Total = (J)Average NOTE: The columns will calculate automatically. If Col. E's response is something other than annually, i.e., 1/6 years, list as "1/6" & decimal will display. | I4: TITLE OF INFORMATION COLLECTION DOCUMENT | N4: OMB NO.
I6: 7 CFR Part 70, Regulations for Voluntary Grading of Poultry Products and Rabbit Products | N6: 0581-0127
N9: DATE PREPARED
N11: 2013-04-09
A13: IDENTIFICATION OF REPORTING OR RECORDKEEPING REQUIREMENT | H13: ANNUAL BURDEN
H15: REPORTS | M15: RECORDS
O17: TOTAL
G18: FORMS NO (S) | H18: NO. OF | I18: NO OF | J18: TOTAL ANNUAL | K18: HOURS | L18: TOTAL | M18: NO. OF | N18: ANNUAL | O18: RECORD-
A19: SECTION OF | B19: DESCRIPTION | G19: (If "none" | H19: RESPONDENTS | I19: RESPONSES | J19: RESPONSES | K19: PER | L19: HOURS | M19: RECORD- | N19: HOURS PER | O19: KEEPING HOURS
A20: REGS. | G20: so state) | I20: PER | J20: (Col. D x E) | K20: RESPONSE | L20: (Col. F x G) | M20: KEEPERS | N20: RECORD- | O20: (Col. I x J)
I21: RESPONDENT | N21: KEEPER
A22: (A) | B22: (B) | G22: (C) | H22: (D) | I22: (E) | J22: (F) | K22: (G) | L22: (H) | M22: (I) | N22: (J) | O22: (K)
A23: 70.3 | B23: Request experimentation or alternate procedures | G23: None | H23: 20 | I23: 1.0000 | J23: =SUM(H23*I23) -> 20.00 | K23: 1.0000 | L23: =SUM(J23*K23) -> 20.00 | O23: =SUM(M23*N23) -> 0.00
A24: 70.10 | B24: Application for Specifications Approval (Reflects burden for all PY Prog. program regs. PY-33 is used for all PY Programs' prog regs.) | G24: PY-33 | H24: 5 | I24: 1.5000 | J24: =SUM(H24*I24) -> 7.50 | K24: 2.0000 | L24: =SUM(J24*K24) -> 15.00 | O24: =SUM(M24*N24) -> 0.00
A25: 70.17 | B25: Info provided on product graded on lot-fee basis (Burden reflected under 70.31(a). Info required - kind & amt of product, address where located & applicant name. | G25: None | J25: 0.00 | L25: 0.00 | O25: 0.00
A26: 70.18 | B26: Request grading schedule for continuous resident service. (Burden for all PY Programs' prog regs reflected under 56.18, OMB 0581-0128) | G26: PY-100 OMB 0581-0128 | J26: 0.00 | L26: 0.00 | O26: 0.00
A27: 70.18 | B27: Verbally notify grader in advance of change in the hours of scheduled continuous resident grading service. | G27: None | H27: 10 | I27: 3.0000 | J27: 30.00 | K27: 0.0800 | L27: 2.40 | O27: 0.00
A28: 70.20(a) | B28: State employee's request for grader's license (Burden for all PY Progs'. Prog regs reflected under 56.10(a), OMB 0581-0128) | G28: PY-157 OMB 0581-0128 | J28: 0.00 | L28: 0.00 | O28: 0.00
A29: 70.21 | B29: State employee appeals suspension of grader's license | G29: None | J29: 0.00 | K29: 1.0000 | L29: 0.00 | O29: 0.00
B30: SUBTOTAL | J30: =SUM(J23:J29) -> 57.50 | L30: =SUM(L23:L29) -> 37.40 | M30: =SUM(M23:M29) -> 0.00 | O30: =SUM(O23:O29) -> 0.00
B31: TOTAL OF ALL PAGES | J31: =SUM(J30+J63+J93+J122+J151) -> 24,053.50 | L31: =SUM(L30+L63+L93+L122+L151) -> 2,005.09 | M31: =SUM(M30+M63+M93+M122+M151+M180) -> 0.00 | O31: =SUM(O30+O63+O93+O122+O151+O180) -> 0.00
A32: TOTAL - COLUMNS "F" AND "I" = OMB 831, 13 b; COLUMNS "H" AND "K" = OMB 831, 13c | J32: =SUM(J31+M31) -> 24,053.50 | L32: =SUM(L31+L64+L94+L123+L152+L181) -> 2,005.09
A36: INSTRUCTIONS: Use this form when a single information collection document involves multiple reporting and recordkeeping requirements. The totals of the figures in cols. should be entered in item 13 of OMB-83-1: cols. (D) &/or (I) = 13a (respondent is only counted once); cols. F & I = 13b; cols. H & K = 13c. (F)Total/(D)Total = (E)Average (H)Total/(F)Total = (G)Average (K)Total/(I)Total = (J)Average NOTE: The columns will calculate automatically. If Col. E's response is something other than annually, i.e., 1/6 years, list as "1/6" & decimal will display. | I36: TITLE OF INFORMATION COLLECTION DOCUMENT | N36: OMB NO.
I38: 7 CFR Part 70, Regulations for Voluntary Grading of Poultry Products and Rabbit Products | N38: 0581-0127
N43: April 9. 2013
A45: IDENTIFICATION OF REPORTING OR RECORDKEEPING REQUIREMENT | H45: ANNUAL BURDEN
H47: REPORTS | M47: RECORDS
O49: TOTAL
G50: FORMS NO (S) | H50: NO. OF | I50: NO OF | J50: TOTAL ANNUAL | K50: HOURS | L50: TOTAL | M50: NO. OF | N50: ANNUAL | O50: RECORD-
A51: SECTION OF | B51: DESCRIPTION | G51: (If "none" | H51: RESPONDENTS | I51: RESPONSES | J51: RESPONSES | K51: PER | L51: HOURS | M51: RECORD- | N51: HOURS PER | O51: KEEPING HOURS
A52: REGS. | G52: so state) | I52: PER | J52: (Col. D x E) | K52: RESPONSE | L52: (Col. F x G) | M52: KEEPERS | N52: RECORD- | O52: (Col. I x J)
I53: RESPONDENT | N53: KEEPER
A54: (A) | B54: (B) | G54: (C) | H54: (D) | I54: (E) | J54: (F) | K54: (G) | L54: (H) | M54: (I) | N54: (J) | O54: (K)
A55: 70.31(a) | B55: Written request to establish resident grading service on as-needed basis | G55: None | H55: 12 | I55: 1.0000 | J55: =SUM(H55*I55) -> 12.00 | K55: 0.2500 | L55: =SUM(J55*K55) -> 3.00 | O55: =SUM(M55*N55) -> 0.00
A56: 70.31(a) | B56: Verbally request service of a grader to grade product (service on as-needed basis) | G56: None | H56: 60 | I56: 20.0000 | J56: =SUM(H56*I56) -> 1,200.00 | K56: 0.1600 | L56: =SUM(J56*K56) -> 192.00 | O56: =SUM(M56*N56) -> 0.00
A57: 70.31(a) | B57: Written request to cancel resident grading service on as-needed basis | G57: None | H57: 10 | I57: 1.0000 | J57: =SUM(H57*I57) -> 10.00 | K57: 0.2500 | L57: =SUM(J57*K57) -> 2.50 | O57: =SUM(M57*N57) -> 0.00
A58: 70.31(a) | B58: Request service on lot-fee basis - may be oral or in writing (Incl applicable burden for 70.17 & 70.92. Most all requests are telephone or direct verbal requests.) | G58: None | H58: 125 | I58: 32.0000 | J58: =SUM(H58*I58) -> 4,000.00 | K58: 0.1600 | L58: =SUM(J58*K58) -> 640.00 | O58: =SUM(M58*N58) -> 0.00
A59: 70.31(b) | B59: Application for Service (continuous resident grading service) (Reflects burden for all PY Progs' prog regs. PY-32 used for all PY Progs' prog regs. Incl burden under 70.38(d) & 70.77(a)(1) | G59: PY-32 | H59: 20 | I59: 1.0000 | J59: =SUM(H59*I59) -> 20.00 | K59: 0.2500 | L59: =SUM(J59*K59) -> 5.00 | O59: =SUM(M59*N59) -> 0.00
A60: 70.33 | B60: Proof of applicant's authority | G60: None | H60: 1 | I60: 1.0000 | J60: =SUM(H60*I60) -> 1.00 | K60: 0.5000 | L60: =SUM(J60*K60) -> 0.50 | O60: =SUM(M60*N60) -> 0.00
A61: 70.34 | B61: Plant survey for approval of application for resident service (Survey verbally discussed with plant mangement. Explained in A.2 of supporting statement) | G61: None | H61: 15 | I61: 1.0000 | J61: =SUM(H61*I61) -> 15.00 | K61: 0.5000 | L61: =SUM(J61*K61) -> 7.50 | O61: =SUM(M61*N61) -> 0.00
A62: 70.35 | B62: Submit petition for reconsideration of rejected application for resident service | G62: None | H62: 1 | I62: 1.0000 | J62: 1.00 | K62: 2.0000 | L62: 2.00 | O62: 0.00
B63: SUBTOTAL | J63: =SUM(J55:J62) -> 5,259.00 | L63: =SUM(L55:L62) -> 852.50 | M63: =SUM(M56:M60) -> 0 | O63: =SUM(O56:O60) -> 0.00
A67: INSTRUCTIONS: Use this form when a single information collection document involves multiple reporting and recordkeeping requirements. The totals of the figures in cols. should be entered in item 13 of OMB-83-1: cols. (D) &/or (I) = 13a (respondent is only counted once); cols. F & I = 13b; cols. H & K = 13c. (F)Total/(D)Total = (E)Average (H)Total/(F)Total = (G)Average (K)Total/(I)Total = (J)Average NOTE: The columns will calculate automatically. If Col. E's response is something other than annually, i.e., 1/6 years, list as "1/6" & decimal will display. | I67: TITLE OF INFORMATION COLLECTION DOCUMENT | N67: OMB NO.
I69: 7 CFR Part 70, Regulations for Voluntary Grading of Poultry Products and Rabbit Products | N69: 0581-0127
N72: DATE PREPARED
N74: 2013-04-09
A76: IDENTIFICATION OF REPORTING OR RECORDKEEPING REQUIREMENT | H76: ANNUAL BURDEN
H78: REPORTS | M78: RECORDS
O80: TOTAL
G81: FORMS NO (S) | H81: NO. OF | I81: NO OF | J81: TOTAL ANNUAL | K81: HOURS | L81: TOTAL | M81: NO. OF | N81: ANNUAL | O81: RECORD-
A82: SECTION OF | B82: DESCRIPTION | G82: (If "none" | H82: RESPONDENTS | I82: RESPONSES | J82: RESPONSES | K82: PER | L82: HOURS | M82: RECORD- | N82: HOURS PER | O82: KEEPING HOURS
A83: REGS. | G83: so state) | I83: PER | J83: (Col. D x E) | K83: RESPONSE | L83: (Col. F x G) | M83: KEEPERS | N83: RECORD- | O83: (Col. I x J)
I84: RESPONDENT | N84: KEEPER
A85: (A) | B85: (B) | G85: (C) | H85: (D) | I85: (E) | J85: (F) | K85: (G) | L85: (H) | M85: (I) | N85: (J) | O85: (K)
A86: 70.36 | B86: Withdraw application for continuous resident service | G86: None | H86: 1 | I86: 1.0000 | J86: =SUM(H86*I86) -> 1.00 | K86: 0.3300 | L86: =SUM(J86*K86) -> 0.33 | O86: =SUM(M86*N86) -> 0.00
A87: 70.38(c) | B87: Request hearing on suspension or withdrawal of resident service | G87: None | H87: 1 | I87: 1.0000 | J87: 1.00 | K87: 2.0000 | L87: 2.00 | O87: 0.00
A88: 70.38(d) | B88: Reapply for continuous resident grading service (Burden reflected under 70.31(b)) | G88: PY-32 | J88: 0.00 | L88: 0.00 | O88: 0.00
A89: 70.40 | B89: Request hearing on debarment (Burden reflected under 70.38(c)) | G89: None | J89: 0.00 | L89: 0.00 | O89: 0.00
A90: 70.50 | B90: Submit labeling w/USDA grademark for approval (Labeling required for submission to USDA's FSIS (9CFR 381). Burden shown reflects portion estimated to be due to PY Prog requirements in 70.50. Expl'd in A.4 of support statement.) | G90: None | H90: 25 | I90: 34.0000 | J90: 850.00 | K90: 0.2500 | L90: 212.50 | O90: 0.00
A91: 70.61 | B91: Vol. of product graded per month in plants w/resident service on as-needed basis. (Burden for all PY Progs' prog regs reflected under 56.23, OMB 0581-0128) | G91: PY-240P & PY- 240S OMB 0581-0128 | J91: 0.00 | L91: 0.00 | O91: 0.00
A92: 70.62 | B92: Grader's report of violations or noncompliance (Burden for all PY Progs' prog regs reflected under 59.240, OMB 0581-0113) | G92: PY-518-1 OMB 0581-0113 | J92: 0.00 | L92: 0.00 | O92: 0.00
B93: SUBTOTAL | J93: =SUM(J86:J92) -> 852.00 | L93: =SUM(L86:L92) -> 214.83 | M93: =SUM(M86:M89) -> 0 | O93: =SUM(O86:O89) -> 0.00
A97: INSTRUCTIONS: Use this form when a single information collection document involves multiple reporting and recordkeeping requirements. The totals of the figures in cols. should be entered in item 13 of OMB-83-1: cols. (D) &/or (I) = 13a (respondent is only counted once); cols. F & I = 13b; cols. H & K = 13c. (F)Total/(D)Total = (E)Average (H)Total/(F)Total = (G)Average (K)Total/(I)Total = (J)Average NOTE: The columns will calculate automatically. If Col. E's response is something other than annually, i.e., 1/6 years, list as "1/6" & decimal will display. | I97: TITLE OF INFORMATION COLLECTION DOCUMENT | N97: OMB NO.
I99: 7 CFR Part 70, Regulations for Voluntary Grading of Poultry Products and Rabbit Products | N99: 0581-0127
N102: DATE PREPARED
N104: 2013-04-09
A106: IDENTIFICATION OF REPORTING OR RECORDKEEPING REQUIREMENT | H106: ANNUAL BURDEN
H108: REPORTS | M108: RECORDS
O110: TOTAL
G111: FORMS NO (S) | H111: NO. OF | I111: NO OF | J111: TOTAL ANNUAL | K111: HOURS | L111: TOTAL | M111: NO. OF | N111: ANNUAL | O111: RECORD-
A112: SECTION OF | B112: DESCRIPTION | G112: (If "none" | H112: RESPONDENTS | I112: RESPONSES | J112: RESPONSES | K112: PER | L112: HOURS | M112: RECORD- | N112: HOURS PER | O112: KEEPING HOURS
A113: REGS. | G113: so state) | I113: PER | J113: (Col. D x E) | K113: RESPONSE | L113: (Col. F x G) | M113: KEEPERS | N113: RECORD- | O113: (Col. I x J)
I114: RESPONDENT | N114: KEEPER
A115: (A) | B115: (B) | G115: (C) | H115: (D) | I115: (E) | J115: (F) | K115: (G) | L115: (H) | M115: (I) | N115: (J) | O115: (K)
A116: 70.73 | B116: Request for voluntary lab analyses on fee-for-service basis. (A voluntary srvc only provided for those who wish analyses - not required. No info required to be reported. Burden reflected under 70.91(a) & (c)) | G116: None | J116: =SUM(H116*I116) -> 0.00 | L116: =SUM(J116*K116) -> 0.00 | O116: =SUM(M116*N116) -> 0.00
A117: 70.76(b)(1) | B117: Company designates, in writing, plant employee required and authorized to furnish information to grader | G117: None | H117: 1 | I117: 1.0000 | J117: 1.00 | K117: 0.2000 | L117: 0.20 | O117: 0.00
A118: 70.76(b)(3)(ii) | B118: Applicant's written notice to terminate continuous service on a nonresident basis | G118: None | H118: 5 | I118: 1.0000 | J118: 5.00 | K118: 0.2500 | L118: 1.25 | O118: 0.00
A119: 70.77(a)(1) | B119: New application for continuous resident service submitted because of change in name of ownership or location. (Burden reflected under 70.31(b)) | G119: PY-32 | J119: 0.00 | L119: 0.00 | O119: 0.00
A120: 70.77(a)(4) | B120: Vol of poultry handled & graded per month in plants w/continuous resident srvc. (Burden for all PY Progs' prog regs reflected under 56.52(a)(4), OMB 0581-0128 | G120: PY-240P & PY-240S OMB 0581-0128 | J120: 0.00 | L120: 0.00 | O120: 0.00
A121: 70.77(b)(1) | B121: Company designates, in writing, plant employee required and authorized to furnish information to resident grader | G121: None | H121: 15 | I121: 1.0000 | J121: 15.00 | K121: 0.2000 | L121: 3.00 | O121: 0.00
B122: SUBTOTAL | J122: =SUM(J116:J121) -> 21.00 | L122: =SUM(L116:L121) -> 4.45 | M122: =SUM(M116:M118) -> 0 | O122: =SUM(O116:O118) -> 0.00
A126: INSTRUCTIONS: Use this form when a single information collection document involves multiple reporting and recordkeeping requirements. The totals of the figures in cols. should be entered in item 13 of OMB-83-1: cols. (D) &/or (I) = 13a (respondent is only counted once); cols. F & I = 13b; cols. H & K = 13c. (F)Total/(D)Total = (E)Average (H)Total/(F)Total = (G)Average (K)Total/(I)Total = (J)Average NOTE: The columns will calculate automatically. If Col. E's response is something other than annually, i.e., 1/6 years, list as "1/6" & decimal will display. | I126: TITLE OF INFORMATION COLLECTION DOCUMENT | N126: OMB NO.
I128: 7 CFR Part 70, Regulations for Voluntary Grading of Poultry Products and Rabbit Products | N128: 0581-0127
N131: DATE PREPARED
N133: 2013-04-09
A135: IDENTIFICATION OF REPORTING OR RECORDKEEPING REQUIREMENT | H135: ANNUAL BURDEN
H137: REPORTS | M137: RECORDS
O139: TOTAL
G140: FORMS NO (S) | H140: NO. OF | I140: NO OF | J140: TOTAL ANNUAL | K140: HOURS | L140: TOTAL | M140: NO. OF | N140: ANNUAL | O140: RECORD-
A141: SECTION OF | B141: DESCRIPTION | G141: (If "none" | H141: RESPONDENTS | I141: RESPONSES | J141: RESPONSES | K141: PER | L141: HOURS | M141: RECORD- | N141: HOURS PER | O141: KEEPING HOURS
A142: REGS. | G142: so state) | I142: PER | J142: (Col. D x E) | K142: RESPONSE | L142: (Col. F x G) | M142: KEEPERS | N142: RECORD- | O142: (Col. I x J)
I143: RESPONDENT | N143: KEEPER
A144: (A) | B144: (B) | G144: (C) | H144: (D) | I144: (E) | J144: (F) | K144: (G) | L144: (H) | M144: (I) | N144: (J) | O144: (K)
A145: 70.77(b)(3)(ii) | B145: Applicant's written notice to terminate continuous resident service | G145: None | H145: 10 | I145: 1.0000 | J145: =SUM(H145*I145) -> 10.00 | K145: 0.2500 | L145: =SUM(J145*K145) -> 2.50 | O145: =SUM(M145*N145) -> 0.00
A146: 70.91(a)&(c) | B146: Poultry Products Grading Certificate & Shell Egg Grading Certificate (Direct verbal requests to resident grader. Incl applicable burden under 70.73 & 70.92) | G146: PY-210P & PY-210S | H146: 350 | I146: 51.0000 | J146: 17,850.00 | K146: 0.0500 | L146: 892.50 | O146: 0.00
A147: 70.92 | B147: Request USDA to telephone info from USDA grading certificate in advance. (Burden reflected under 70.31(a) & 70.91(a) & (c)) | G147: None | J147: 0.00 | L147: 0.00 | O147: 0.00
A148: 70.100 and 70.102 | B148: Request for an appeal grading - may be oral or in writing. (Most all are direct verbal or telephone requests.) | G148: None | H148: 1 | I148: 1.0000 | J148: 1.00 | K148: 0.1600 | L148: 0.16 | O148: 0.00
A149: 70.210(e) | B149: Request for approval of poultry parts cut other than described. (Submitted in conjunction with request for label approval 70.50.) | G149: None | H149: 1 | I149: 1.0000 | J149: 1.00 | K149: 0.2500 | L149: 0.25 | O149: 0.00
A150: 70.310(e) | B150: Request for approval of rabbit parts cut other than described. (Submitted in conjunction with request for label approval 70.50.) | G150: None | H150: 1 | I150: 2.0000 | J150: 2.00 | K150: 0.2500 | L150: 0.50 | O150: 0.00
B151: SUBTOTAL | J151: =SUM(J145:J150) -> 17,864.00 | L151: =SUM(L145:L150) -> 895.91 | M151: =SUM(M145:M147) -> 0 | O151: =SUM(O145:O147) -> 0.00
A155: INSTRUCTIONS: Use this form when a single information collection document involves multiple reporting and recordkeeping requirements. The totals of the figures in cols. should be entered in item 13 of OMB-83-1: cols. (D) &/or (I) = 13a (respondent is only counted once); cols. F & I = 13b; cols. H & K = 13c. (F)Total/(D)Total = (E)Average (H)Total/(F)Total = (G)Average (K)Total/(I)Total = (J)Average NOTE: The columns will calculate automatically. If Col. E's response is something other than annually, i.e., 1/6 years, list as "1/6" & decimal will display. | I155: TITLE OF INFORMATION COLLECTION DOCUMENT | N155: OMB NO.
I157: 7 CFR Part 70, Regulations for Voluntary Grading of Poultry Products and Rabbit Products | N157: 0581-0127
N160: DATE PREPARED
N162: 2013-04-09
A164: IDENTIFICATION OF REPORTING OR RECORDKEEPING REQUIREMENT | H164: ANNUAL BURDEN
H166: REPORTS | M166: RECORDS
O168: TOTAL
G169: FORMS NO (S) | H169: NO. OF | I169: NO OF | J169: TOTAL ANNUAL | K169: HOURS | L169: TOTAL | M169: NO. OF | N169: ANNUAL | O169: RECORD-
A170: SECTION OF | B170: DESCRIPTION | G170: (If "none" | H170: RESPONDENTS | I170: RESPONSES | J170: RESPONSES | K170: PER | L170: HOURS | M170: RECORD- | N170: HOURS PER | O170: KEEPING HOURS
A171: REGS. | G171: so state) | I171: PER | J171: (Col. D x E) | K171: RESPONSE | L171: (Col. F x G) | M171: KEEPERS | N171: RECORD- | O171: (Col. I x J)
I172: RESPONDENT | N172: KEEPER
A173: (A) | B173: (B) | G173: (C) | H173: (D) | I173: (E) | J173: (F) | K173: (G) | L173: (H) | M173: (I) | N173: (J) | O173: (K)
J174: =SUM(H174*I174) -> 0.00 | L174: =SUM(J174*K174) -> 0.00 | O174: =SUM(M174*N174) -> 0.00
J175: 0.00 | L175: 0.00 | O175: 0.00
J176: 0.00 | L176: 0.00 | O176: 0.00
J177: 0.00 | L177: 0.00 | O177: 0.00
J178: 0.00 | L178: 0.00 | O178: 0.00
J179: 0.00 | L179: 0.00 | O179: 0.00
B180: SUBTOTAL | H180: =SUM(H174:H179) -> 0 | J180: =SUM(J174:J179) -> 0.00 | L180: =SUM(L174:L179) -> 0.00 | M180: =SUM(M174:M179) -> 0 | O180: =SUM(O174:O179) -> 0.00
